[Event "Late-Titled-Tuesday-Blitz-February-06-2024"]
[Site "Chess.com"]
[Date "2024.02.06"]
[Round "3"]
[White "GMWSO"]
[Black "LikeWater"]
[Result "1-0"]
[WhiteElo "3084"]
[BlackElo "2789"]
[TimeControl "180+1"]
[EndTime "14:28:45 PST"]
[Termination "GMWSO won by resignation"]

1. d4 {[%clk 0:03:00.9]} 1... e6 {[%clk 0:03:00.2]} 2. e4 {[%clk 0:03:00.1]}
2... d5 {[%clk 0:03:00.1]} 3. Nc3 {[%clk 0:02:59.5]} 3... Nf6 {[%clk 0:02:58.9]}
4. e5 {[%clk 0:02:59.7]} 4... Nfd7 {[%clk 0:02:59]} 5. f4 {[%clk 0:03:00.3]}
5... c5 {[%clk 0:02:59.1]} 6. Nf3 {[%clk 0:03:00.7]} 6... Nc6 {[%clk 0:02:59.3]}
7. Be3 {[%clk 0:03:01.4]} 7... Be7 {[%clk 0:02:58.3]} 8. Qd2 {[%clk 0:02:59.9]}
8... O-O {[%clk 0:02:58.1]} 9. dxc5 {[%clk 0:02:59.6]} 9... Qa5 {[%clk 0:02:54]}
10. a3 {[%clk 0:02:53.3]} 10... Nxc5 {[%clk 0:02:47.7]} 11. Nd4 {[%clk 0:02:46]}
11... Qc7 {[%clk 0:02:14.2]} 12. b4 {[%clk 0:02:36.6]} 12... Nd7 {[%clk
0:02:02.1]} 13. Bd3 {[%clk 0:02:29.3]} 13... Nb6 {[%clk 0:01:54.1]} 14. O-O
{[%clk 0:02:20.7]} 14... f6 {[%clk 0:01:54.4]} 15. Ncb5 {[%clk 0:01:40.3]} 15...
Qd8 {[%clk 0:01:47.5]} 16. exf6 {[%clk 0:01:39.4]} 16... Bxf6 {[%clk 0:01:47]}
17. Rae1 {[%clk 0:01:28.1]} 17... Bd7 {[%clk 0:01:17.7]} 18. c3 {[%clk
0:01:22.6]} 18... Ne7 {[%clk 0:01:12.7]} 19. Bf2 {[%clk 0:01:10]} 19... a6
{[%clk 0:01:08]} 20. Nxe6 {[%clk 0:01:08.9]} 20... Bxe6 {[%clk 0:01:00.7]} 21.
Rxe6 {[%clk 0:01:09.8]} 21... Nc6 {[%clk 0:00:58.4]} 22. Rd6 {[%clk 0:01:04]}
22... Qc8 {[%clk 0:00:53.5]} 23. Bxb6 {[%clk 0:01:00.6]} 23... axb5 {[%clk
0:00:53.6]} 24. Bxb5 {[%clk 0:01:01.5]} 24... Ne7 {[%clk 0:00:50]} 25. Bc5
{[%clk 0:00:36.5]} 25... Rxa3 {[%clk 0:00:43.3]} 26. Rxf6 {[%clk 0:00:36.7]}
26... Rxf6 {[%clk 0:00:38.4]} 27. Bxe7 {[%clk 0:00:36.9]} 27... Rf7 {[%clk
0:00:34.8]} 28. Qxd5 {[%clk 0:00:36.6]} 28... Rxc3 {[%clk 0:00:33.6]} 29. Bc5
{[%clk 0:00:34.2]} 29... b6 {[%clk 0:00:20.1]} 30. Re1 {[%clk 0:00:32.4]} 1-0

[Event "Late-Titled-Tuesday-Blitz-February-06-2024"]
[Site "Chess.com"]
[Date "2024.02.06"]
[Round "3"]
[White "EsmeraldasAnderson03"]
[Black "JaackCamel"]
[Result "1-0"]
[WhiteElo "2407"]
[BlackElo "2185"]
[TimeControl "180+1"]
[EndTime "14:28:45 PST"]
[Termination "EsmeraldasAnderson03 won on time"]

1. d4 {[%clk 0:03:00.9]} 1... d5 {[%clk 0:02:59.3]} 2. c4 {[%clk 0:03:01.6]}
2... e6 {[%clk 0:02:58.8]} 3. cxd5 {[%clk 0:03:02.2]} 3... exd5 {[%clk
0:02:58.5]} 4. Nc3 {[%clk 0:03:03.1]} 4... c6 {[%clk 0:02:57.7]} 5. Nf3 {[%clk
0:03:02.8]} 5... Bf5 {[%clk 0:02:57.3]} 6. e3 {[%clk 0:02:56.9]} 6... Nf6 {[%clk
0:02:56.8]} 7. Bd3 {[%clk 0:02:57.5]} 7... Bxd3 {[%clk 0:02:56.3]} 8. Qxd3
{[%clk 0:02:58.1]} 8... Be7 {[%clk 0:02:54.1]} 9. O-O {[%clk 0:02:58.7]} 9...
O-O {[%clk 0:02:53.5]} 10. Rb1 {[%clk 0:02:59.5]} 10... a5 {[%clk 0:02:52.6]}
11. a3 {[%clk 0:02:59.6]} 11... Nbd7 {[%clk 0:02:47]} 12. b4 {[%clk 0:02:59.5]}
12... b5 {[%clk 0:02:40]} 13. e4 {[%clk 0:02:45.2]} 13... dxe4 {[%clk 0:02:35]}
14. Nxe4 {[%clk 0:02:45.2]} 14... Nd5 {[%clk 0:02:23.2]} 15. Neg5 {[%clk
0:02:29.5]} 15... N7f6 {[%clk 0:02:14.8]} 16. Ne5 {[%clk 0:02:29.5]} 16... Qc7
{[%clk 0:02:00.3]} 17. Bd2 {[%clk 0:02:25.8]} 17... h6 {[%clk 0:01:57.2]} 18.
Ngf3 {[%clk 0:02:26]} 18... a4 {[%clk 0:01:53.4]} 19. Rbc1 {[%clk 0:02:25.3]}
19... Ra6 {[%clk 0:01:46.9]} 20. Nh4 {[%clk 0:02:24.9]} 20... Bd6 {[%clk
0:01:29.4]} 21. Nf5 {[%clk 0:01:56.6]} 21... Bxe5 {[%clk 0:01:24]} 22. dxe5
{[%clk 0:01:57.5]} 22... Qxe5 {[%clk 0:01:20.4]} 23. Rfe1 {[%clk 0:01:58.1]}
23... Qb2 {[%clk 0:01:03.9]} 24. Bxh6 {[%clk 0:01:47.7]} 24... Nh5 {[%clk
0:00:46]} 25. Bxg7 {[%clk 0:01:19]} 25... Ndf4 {[%clk 0:00:31.5]} 26. Qf3 {[%clk
0:01:09.4]} 26... Nxg7 {[%clk 0:00:26.5]} 27. Ne7+ {[%clk 0:01:09]} 27... Kh7
{[%clk 0:00:19]} 28. Qxf4 {[%clk 0:01:09.9]} 28... c5 {[%clk 0:00:17]} 29. Rxc5
{[%clk 0:00:59.2]} 29... f5 {[%clk 0:00:09]} 30. Rc7 {[%clk 0:00:53.4]} 30...
Qf6 {[%clk 0:00:03.2]} 31. h4 {[%clk 0:00:44.2]} 31... Ne6 {[%clk 0:00:02.8]}
32. Rxe6 {[%clk 0:00:37.3]} 1-0

[Event "Late-Titled-Tuesday-Blitz-February-06-2024"]
[Site "Chess.com"]
[Date "2024.02.06"]
[Round "3"]
[White "rikchessmx"]
[Black "mr_gustavo"]
[Result "0-1"]
[WhiteElo "2315"]
[BlackElo "2691"]
[TimeControl "180+1"]
[EndTime "14:28:46 PST"]
[Termination "mr_gustavo won by resignation"]

1. e4 {[%clk 0:03:00.9]} 1... e6 {[%clk 0:03:00.5]} 2. d4 {[%clk 0:02:59.7]}
2... d5 {[%clk 0:03:01.2]} 3. Nc3 {[%clk 0:02:59.9]} 3... dxe4 {[%clk
0:03:01.7]} 4. Nxe4 {[%clk 0:02:58.8]} 4... Bd7 {[%clk 0:03:02.4]} 5. Nf3 {[%clk
0:02:57.9]} 5... Bc6 {[%clk 0:03:03]} 6. Ng3 {[%clk 0:02:57.2]} 6... Nd7 {[%clk
0:03:03.3]} 7. Bd3 {[%clk 0:02:56.9]} 7... Ngf6 {[%clk 0:03:03.7]} 8. Qe2 {[%clk
0:02:55.1]} 8... Be7 {[%clk 0:03:04.2]} 9. c3 {[%clk 0:02:54.8]} 9... O-O {[%clk
0:03:04.3]} 10. Bf4 {[%clk 0:02:54.6]} 10... Bxf3 {[%clk 0:03:04.8]} 11. Qxf3
{[%clk 0:02:53.3]} 11... c6 {[%clk 0:03:05.5]} 12. O-O-O {[%clk 0:02:52.4]}
12... Nd5 {[%clk 0:03:04]} 13. Bd2 {[%clk 0:02:51.6]} 13... Bg5 {[%clk
0:02:59.7]} 14. Ne4 {[%clk 0:02:47.9]} 14... Bxd2+ {[%clk 0:02:59.6]} 15. Rxd2
{[%clk 0:02:47.8]} 15... N7f6 {[%clk 0:03:00.1]} 16. g4 {[%clk 0:02:46.5]} 16...
Nxe4 {[%clk 0:02:58.5]} 17. Qxe4 {[%clk 0:02:46.3]} 17... Nf6 {[%clk 0:02:56.8]}
18. Qe2 {[%clk 0:02:42.1]} 18... Qd5 {[%clk 0:02:55.4]} 19. Rg1 {[%clk
0:02:42.2]} 19... Qxa2 {[%clk 0:02:48.3]} 20. g5 {[%clk 0:02:39.6]} 20... Nd5
{[%clk 0:02:48.3]} 21. Bb1 {[%clk 0:02:37.7]} 21... Qa1 {[%clk 0:02:40.9]} 22.
Rg3 {[%clk 0:02:27.4]} 22... g6 {[%clk 0:02:38.7]} 23. c4 {[%clk 0:02:19.4]}
23... Qa5 {[%clk 0:01:56.6]} 24. cxd5 {[%clk 0:02:04.9]} 24... cxd5 {[%clk
0:01:57.5]} 25. Ra3 {[%clk 0:01:51.2]} 25... Qc7+ {[%clk 0:01:55.3]} 26. Rc2
{[%clk 0:01:49.6]} 26... Qxh2 {[%clk 0:01:55.2]} 27. Qg4 {[%clk 0:01:44]} 27...
h5 {[%clk 0:01:44.6]} 28. gxh6 {[%clk 0:01:41.3]} 28... Qxh6+ {[%clk 0:01:44.8]}
29. f4 {[%clk 0:01:40.2]} 29... Qh1+ {[%clk 0:01:39.9]} 30. Kd2 {[%clk
0:01:35.6]} 30... Qxb1 {[%clk 0:01:17.7]} 31. Rac3 {[%clk 0:01:32.3]} 31... Qf1
{[%clk 0:01:10.4]} 32. Qh4 {[%clk 0:01:25.8]} 32... Kg7 {[%clk 0:01:01.6]} 33.
Qg5 {[%clk 0:01:16.5]} 33... Qf2+ {[%clk 0:00:50.6]} 34. Kd1 {[%clk 0:01:15.1]}
34... Qxd4+ {[%clk 0:00:47.7]} 35. Rd2 {[%clk 0:01:14.8]} 35... Qf6 {[%clk
0:00:47.6]} 36. Qg4 {[%clk 0:01:13.3]} 36... Rh8 {[%clk 0:00:47.1]} 37. Rc7
{[%clk 0:01:05.7]} 37... Rac8 {[%clk 0:00:43.8]} 38. Rxb7 {[%clk 0:00:58]} 38...
Rh1+ {[%clk 0:00:40.6]} 39. Ke2 {[%clk 0:00:57.8]} 39... Rcc1 {[%clk 0:00:41.1]}
40. Kd3 {[%clk 0:00:50.9]} 40... Rcg1 {[%clk 0:00:36.5]} 41. Qf3 {[%clk
0:00:46]} 41... Rf1 {[%clk 0:00:36.1]} 42. Qe3 {[%clk 0:00:39.4]} 42... Qf5+
{[%clk 0:00:34.5]} 43. Kc3 {[%clk 0:00:33.3]} 43... Rh3 {[%clk 0:00:34.1]} 0-1

[Event "Late-Titled-Tuesday-Blitz-February-06-2024"]
[Site "Chess.com"]
[Date "2024.02.06"]
[Round "3"]
[White "yobdc"]
[Black "ferdipy"]
[Result "1-0"]
[WhiteElo "2610"]
[BlackElo "2399"]
[TimeControl "180+1"]
[EndTime "14:28:47 PST"]
[Termination "yobdc won on time"]

1. c4 {[%clk 0:02:56.9]} 1... e5 {[%clk 0:03:00.1]} 2. Nc3 {[%clk 0:02:57]} 2...
Nc6 {[%clk 0:03:00.5]} 3. g3 {[%clk 0:02:57.3]} 3... g6 {[%clk 0:03:00.9]} 4.
Bg2 {[%clk 0:02:57.8]} 4... Bg7 {[%clk 0:03:01.4]} 5. Nf3 {[%clk 0:02:58.3]}
5... d6 {[%clk 0:03:01.1]} 6. d3 {[%clk 0:02:57.7]} 6... Nge7 {[%clk 0:02:59.5]}
7. h4 {[%clk 0:02:57.7]} 7... h6 {[%clk 0:02:59.7]} 8. Bd2 {[%clk 0:02:57.6]}
8... Be6 {[%clk 0:02:59.5]} 9. Qc1 {[%clk 0:02:54.8]} 9... Qd7 {[%clk 0:02:59]}
10. a3 {[%clk 0:02:39]} 10... f5 {[%clk 0:02:55.9]} 11. b4 {[%clk 0:02:32.8]}
11... Nd4 {[%clk 0:02:39.7]} 12. Ng1 {[%clk 0:02:11.5]} 12... c6 {[%clk
0:02:30.8]} 13. Rb1 {[%clk 0:02:09.5]} 13... c5 {[%clk 0:02:28]} 14. b5 {[%clk
0:02:03.9]} 14... Bf7 {[%clk 0:02:19.3]} 15. e3 {[%clk 0:02:02.3]} 15... Ne6
{[%clk 0:02:19]} 16. Nge2 {[%clk 0:02:02.2]} 16... g5 {[%clk 0:02:14.9]} 17. Nd5
{[%clk 0:01:59.9]} 17... Nxd5 {[%clk 0:02:10.9]} 18. Bxd5 {[%clk 0:02:00.8]}
18... Nd8 {[%clk 0:02:07]} 19. Bg2 {[%clk 0:01:59.4]} 19... O-O {[%clk
0:01:57.5]} 20. hxg5 {[%clk 0:01:59.2]} 20... hxg5 {[%clk 0:01:58.4]} 21. Nc3
{[%clk 0:01:57.9]} 21... f4 {[%clk 0:01:50.8]} 22. gxf4 {[%clk 0:01:51.2]} 22...
exf4 {[%clk 0:01:48.8]} 23. Be4 {[%clk 0:01:47.5]} 23... Re8 {[%clk 0:01:46]}
24. Nd5 {[%clk 0:01:40.7]} 24... Ne6 {[%clk 0:01:37.9]} 25. Bc3 {[%clk
0:01:39.8]} 25... Qd8 {[%clk 0:01:07.5]} 26. Bxg7 {[%clk 0:01:37.4]} 26... Nxg7
{[%clk 0:01:08.4]} 27. Qc3 {[%clk 0:01:36.6]} 27... Re5 {[%clk 0:01:00.4]} 28.
Kd2 {[%clk 0:01:17.1]} 28... Bxd5 {[%clk 0:00:22.3]} 29. Bxd5+ {[%clk 0:01:16]}
29... Rxd5 {[%clk 0:00:21.7]} 30. cxd5 {[%clk 0:01:16.8]} 30... fxe3+ {[%clk
0:00:18.9]} 31. fxe3 {[%clk 0:01:16.4]} 31... Qe7 {[%clk 0:00:17.3]} 32. Rbf1
{[%clk 0:00:56.8]} 32... Rf8 {[%clk 0:00:13.4]} 33. Rxf8+ {[%clk 0:00:56]} 33...
Kxf8 {[%clk 0:00:14.3]} 34. Rf1+ {[%clk 0:00:50.5]} 34... Kg8 {[%clk 0:00:14.3]}
35. Qf6 {[%clk 0:00:50.4]} 35... Qxf6 {[%clk 0:00:10.2]} 36. Rxf6 {[%clk
0:00:51.3]} 1-0

[Event "Late-Titled-Tuesday-Blitz-February-06-2024"]
[Site "Chess.com"]
[Date "2024.02.06"]
[Round "3"]
[White "picturesquecheck"]
[Black "Zallio"]
[Result "1-0"]
[WhiteElo "2398"]
[BlackElo "2123"]
[TimeControl "180+1"]
[EndTime "14:28:48 PST"]
[Termination "picturesquecheck won by resignation"]

1. e4 {[%clk 0:02:58.5]} 1... e6 {[%clk 0:02:59.8]} 2. Nc3 {[%clk 0:02:57.5]}
2... d5 {[%clk 0:02:59.4]} 3. d4 {[%clk 0:02:55.9]} 3... Bb4 {[%clk 0:02:56.9]}
4. exd5 {[%clk 0:02:56.1]} 4... exd5 {[%clk 0:02:56.6]} 5. Bd3 {[%clk
0:02:56.5]} 5... Nf6 {[%clk 0:02:48.8]} 6. Nf3 {[%clk 0:02:56.3]} 6... Bg4
{[%clk 0:02:48]} 7. O-O {[%clk 0:02:54.4]} 7... O-O {[%clk 0:02:47.9]} 8. h3
{[%clk 0:02:54.5]} 8... Bh5 {[%clk 0:02:47.5]} 9. Bg5 {[%clk 0:02:54.1]} 9... c6
{[%clk 0:02:45.6]} 10. g4 {[%clk 0:02:42]} 10... Bg6 {[%clk 0:02:45.2]} 11. Ne5
{[%clk 0:02:42.5]} 11... Bxd3 {[%clk 0:02:42.3]} 12. Qxd3 {[%clk 0:02:43.4]}
12... Bd6 {[%clk 0:02:39.6]} 13. f4 {[%clk 0:02:41.5]} 13... h6 {[%clk
0:02:37.6]} 14. Bh4 {[%clk 0:02:41.1]} 14... Re8 {[%clk 0:02:30.1]} 15. Rae1
{[%clk 0:02:40.4]} 15... Be7 {[%clk 0:02:21]} 16. Kg2 {[%clk 0:02:35.7]} 16...
Nbd7 {[%clk 0:02:20.2]} 17. Bg3 {[%clk 0:02:23.2]} 17... Nf8 {[%clk 0:02:10.8]}
18. Qf3 {[%clk 0:02:15.7]} 18... N6d7 {[%clk 0:02:09.8]} 19. Nd1 {[%clk
0:02:09.5]} 19... Bf6 {[%clk 0:01:54.4]} 20. c3 {[%clk 0:02:05.5]} 20... Ng6
{[%clk 0:01:47.8]} 21. Nxg6 {[%clk 0:01:53.3]} 21... Rxe1 {[%clk 0:01:47.4]} 22.
Rxe1 {[%clk 0:01:50.3]} 22... fxg6 {[%clk 0:01:47.7]} 23. Qd3 {[%clk 0:01:49.8]}
23... Nf8 {[%clk 0:01:43.3]} 24. Ne3 {[%clk 0:01:47.9]} 24... Bh4 {[%clk
0:01:42.6]} 25. Nf1 {[%clk 0:01:30.2]} 25... Qf6 {[%clk 0:01:33.1]} 26. Qe3
{[%clk 0:01:14.3]} 26... Bxg3 {[%clk 0:01:30.9]} 27. Nxg3 {[%clk 0:01:15.2]}
27... Nd7 {[%clk 0:01:21.2]} 28. f5 {[%clk 0:01:07.4]} 28... Rf8 {[%clk
0:01:16.8]} 29. Qe6+ {[%clk 0:01:05]} 29... Rf7 {[%clk 0:01:14.7]} 30. Qxf6
{[%clk 0:00:54.7]} 30... Rxf6 {[%clk 0:01:06.5]} 31. fxg6 {[%clk 0:00:49.3]}
31... Rxg6 {[%clk 0:01:05.7]} 32. Re7 {[%clk 0:00:49.2]} 32... Nf6 {[%clk
0:00:58.5]} 33. Rxb7 {[%clk 0:00:47.3]} 33... h5 {[%clk 0:00:59]} 34. Rxa7
{[%clk 0:00:36.6]} 34... hxg4 {[%clk 0:00:58.7]} 35. h4 {[%clk 0:00:37]} 35...
Ne8 {[%clk 0:00:48.4]} 36. a4 {[%clk 0:00:35.2]} 36... Re6 {[%clk 0:00:44.6]}
37. a5 {[%clk 0:00:34]} 37... Nd6 {[%clk 0:00:43]} 38. a6 {[%clk 0:00:32.7]}
38... Nb5 {[%clk 0:00:39.8]} 39. Rb7 {[%clk 0:00:30.2]} 39... c5 {[%clk
0:00:36.5]} 40. Rxb5 {[%clk 0:00:26]} 40... cxd4 {[%clk 0:00:35.7]} 41. a7
{[%clk 0:00:25.7]} 41... dxc3 {[%clk 0:00:36]} 42. a8=Q+ {[%clk 0:00:25]} 1-0

[Event "Late-Titled-Tuesday-Blitz-February-06-2024"]
[Site "Chess.com"]
[Date "2024.02.06"]
[Round "3"]
[White "PawnEatingZombie"]
[Black "NovakRatko"]
[Result "1-0"]
[WhiteElo "2197"]
[BlackElo "2390"]
[TimeControl "180+1"]
[EndTime "14:28:48 PST"]
[Termination "PawnEatingZombie won by resignation"]

1. e4 {[%clk 0:03:00.9]} 1... d5 {[%clk 0:03:00.3]} 2. exd5 {[%clk 0:03:00.5]}
2... c6 {[%clk 0:03:01]} 3. d4 {[%clk 0:02:58.8]} 3... cxd5 {[%clk 0:03:01]} 4.
c3 {[%clk 0:02:52]} 4... Nc6 {[%clk 0:02:59.7]} 5. Nf3 {[%clk 0:02:51.7]} 5...
f6 {[%clk 0:02:59.8]} 6. Bb5 {[%clk 0:02:47.2]} 6... Bg4 {[%clk 0:03:00]} 7. h3
{[%clk 0:02:42.5]} 7... Bh5 {[%clk 0:03:00.1]} 8. Qa4 {[%clk 0:02:29.4]} 8...
Qd7 {[%clk 0:02:59.7]} 9. Nbd2 {[%clk 0:02:26.6]} 9... e6 {[%clk 0:02:58.4]} 10.
O-O {[%clk 0:02:25.5]} 10... Bd6 {[%clk 0:02:58.6]} 11. Re1 {[%clk 0:02:24.7]}
11... Nge7 {[%clk 0:02:58.8]} 12. Bf1 {[%clk 0:02:05]} 12... O-O {[%clk
0:02:57]} 13. g4 {[%clk 0:02:04.5]} 13... Bf7 {[%clk 0:02:56.8]} 14. Bg2 {[%clk
0:01:59.9]} 14... a6 {[%clk 0:02:54]} 15. Nf1 {[%clk 0:01:51.7]} 15... g5 {[%clk
0:02:51.3]} 16. Qd1 {[%clk 0:01:49]} 16... Rae8 {[%clk 0:02:48.8]} 17. Ng3
{[%clk 0:01:48.8]} 17... Bxg3 {[%clk 0:02:43.7]} 18. fxg3 {[%clk 0:01:48.4]}
18... Qd6 {[%clk 0:02:44.2]} 19. Kh2 {[%clk 0:01:44.9]} 19... h5 {[%clk
0:02:44.1]} 20. gxh5 {[%clk 0:01:42]} 20... Bxh5 {[%clk 0:02:44]} 21. Qd3 {[%clk
0:01:22.3]} 21... Bg6 {[%clk 0:02:41.9]} 22. Qe2 {[%clk 0:01:20]} 22... Nf5
{[%clk 0:02:40.7]} 23. Qf2 {[%clk 0:01:17.7]} 23... Rf7 {[%clk 0:02:33]} 24. b4
{[%clk 0:01:02.1]} 24... Rh7 {[%clk 0:02:31.7]} 25. a4 {[%clk 0:01:02.7]} 25...
g4 {[%clk 0:02:31]} 26. Ng1 {[%clk 0:01:00.5]} 26... gxh3 {[%clk 0:02:23.3]} 27.
Nxh3 {[%clk 0:00:54.7]} 27... Ree7 {[%clk 0:02:10.9]} 28. b5 {[%clk 0:00:48.5]}
28... Nb8 {[%clk 0:02:04.5]} 29. Bf4 {[%clk 0:00:48.1]} 29... e5 {[%clk
0:02:03]} 30. dxe5 {[%clk 0:00:48.3]} 30... fxe5 {[%clk 0:02:03.1]} 31. Bg5
{[%clk 0:00:47.6]} 31... Reg7 {[%clk 0:01:57.4]} 32. Rad1 {[%clk 0:00:43.8]}
32... Bh5 {[%clk 0:01:38.1]} 33. Rxd5 {[%clk 0:00:43.1]} 33... Qf8 {[%clk
0:01:19.3]} 34. Rd8 {[%clk 0:00:42.6]} 34... Be8 {[%clk 0:01:12.7]} 35. Bd5+
{[%clk 0:00:33]} 35... Kh8 {[%clk 0:01:10]} 36. Qxf5 {[%clk 0:00:24.4]} 36...
Rxh3+ {[%clk 0:00:44.9]} 37. Qxh3+ {[%clk 0:00:21.5]} 37... Rh7 {[%clk
0:00:45.2]} 38. Rxe5 {[%clk 0:00:21.8]} 38... Rxh3+ {[%clk 0:00:42.8]} 39. Kxh3
{[%clk 0:00:17]} 39... Qf7 {[%clk 0:00:43.7]} 40. Bxf7 {[%clk 0:00:15.8]} 1-0

[Event "Late-Titled-Tuesday-Blitz-February-06-2024"]
[Site "Chess.com"]
[Date "2024.02.06"]
[Round "3"]
[White "rasmussvane"]
[Black "ukchessbomber"]
[Result "1-0"]
[WhiteElo "2970"]
[BlackElo "2660"]
[TimeControl "180+1"]
[EndTime "14:28:50 PST"]
[Termination "rasmussvane won on time"]

1. Nf3 {[%clk 0:02:57.6]} 1... b6 {[%clk 0:03:00.9]} 2. g3 {[%clk 0:02:57.3]}
2... Bb7 {[%clk 0:03:01.8]} 3. Bg2 {[%clk 0:02:57.6]} 3... g6 {[%clk 0:03:02.5]}
4. O-O {[%clk 0:02:57.7]} 4... Bg7 {[%clk 0:03:03.1]} 5. d4 {[%clk 0:02:57.9]}
5... Nf6 {[%clk 0:03:03.1]} 6. c4 {[%clk 0:02:58.1]} 6... O-O {[%clk 0:03:03.6]}
7. Re1 {[%clk 0:02:57.5]} 7... e6 {[%clk 0:03:02]} 8. Bf4 {[%clk 0:02:52.1]}
8... d5 {[%clk 0:03:01.5]} 9. cxd5 {[%clk 0:02:50.9]} 9... Nxd5 {[%clk
0:03:01.3]} 10. Bg5 {[%clk 0:02:50.8]} 10... Qc8 {[%clk 0:03:00.8]} 11. e4
{[%clk 0:02:50]} 11... Nf6 {[%clk 0:03:01.1]} 12. Nc3 {[%clk 0:02:49.7]} 12...
Nbd7 {[%clk 0:03:01.4]} 13. Rc1 {[%clk 0:02:47.3]} 13... h6 {[%clk 0:03:01.5]}
14. Bf4 {[%clk 0:02:43.8]} 14... g5 {[%clk 0:02:59.3]} 15. Bd2 {[%clk
0:02:42.3]} 15... c5 {[%clk 0:02:59.7]} 16. dxc5 {[%clk 0:01:41]} 16... bxc5
{[%clk 0:02:28.1]} 17. e5 {[%clk 0:01:32.7]} 17... Nd5 {[%clk 0:02:27.1]} 18.
Nb5 {[%clk 0:01:32.7]} 18... Bc6 {[%clk 0:02:23.2]} 19. Nd6 {[%clk 0:01:32.3]}
19... Qb8 {[%clk 0:02:23.3]} 20. Nc4 {[%clk 0:01:28.7]} 20... Rc8 {[%clk
0:01:50.7]} 21. Bxg5 {[%clk 0:01:03.6]} 21... N7b6 {[%clk 0:00:36.3]} 22. Nd6
{[%clk 0:00:42.8]} 22... hxg5 {[%clk 0:00:21.9]} 23. Nxg5 {[%clk 0:00:42.5]}
23... Bxe5 {[%clk 0:00:14.1]} 24. Qh5 {[%clk 0:00:32]} 24... Qc7 {[%clk
0:00:02]} 25. Ndxf7 {[%clk 0:00:14.2]} 1-0

[Event "Late-Titled-Tuesday-Blitz-February-06-2024"]
[Site "Chess.com"]
[Date "2024.02.06"]
[Round "3"]
[White "Atousa"]
[Black "kingofthenil"]
[Result "0-1"]
[WhiteElo "2465"]
[BlackElo "2684"]
[TimeControl "180+1"]
[EndTime "14:28:50 PST"]
[Termination "kingofthenil won on time"]

1. e4 {[%clk 0:02:59.5]} 1... c5 {[%clk 0:02:55.7]} 2. Nf3 {[%clk 0:02:59.4]}
2... Nc6 {[%clk 0:02:55.9]} 3. d4 {[%clk 0:03:00.1]} 3... cxd4 {[%clk
0:02:56.5]} 4. Nxd4 {[%clk 0:03:00.9]} 4... Nf6 {[%clk 0:02:55.9]} 5. Nc3 {[%clk
0:03:00.7]} 5... e5 {[%clk 0:02:56.5]} 6. Ndb5 {[%clk 0:03:01.1]} 6... d6 {[%clk
0:02:54.8]} 7. Bg5 {[%clk 0:03:01.2]} 7... a6 {[%clk 0:02:53.6]} 8. Na3 {[%clk
0:03:01.8]} 8... Be6 {[%clk 0:02:53.8]} 9. Nc4 {[%clk 0:03:01]} 9... Rb8 {[%clk
0:02:53.1]} 10. Ne3 {[%clk 0:02:58.9]} 10... Be7 {[%clk 0:02:45.2]} 11. Bxf6
{[%clk 0:02:55.1]} 11... Bxf6 {[%clk 0:02:46.1]} 12. Ncd5 {[%clk 0:02:55.1]}
12... Bg5 {[%clk 0:02:37.6]} 13. c3 {[%clk 0:02:55.4]} 13... O-O {[%clk
0:02:33.2]} 14. Be2 {[%clk 0:02:55.8]} 14... Ne7 {[%clk 0:02:23.9]} 15. O-O
{[%clk 0:02:34.7]} 15... Ng6 {[%clk 0:02:19.8]} 16. g3 {[%clk 0:02:28.5]} 16...
Kh8 {[%clk 0:02:19.3]} 17. f4 {[%clk 0:02:24.9]} 17... exf4 {[%clk 0:02:16.7]}
18. gxf4 {[%clk 0:02:25.8]} 18... Bh6 {[%clk 0:02:16.9]} 19. f5 {[%clk
0:01:52.5]} 19... Bxd5 {[%clk 0:02:02.7]} 20. Nxd5 {[%clk 0:01:53.4]} 20... Ne5
{[%clk 0:02:01.3]} 21. f6 {[%clk 0:01:51.3]} 21... gxf6 {[%clk 0:01:51.7]} 22.
Nxf6 {[%clk 0:01:45.1]} 22... Bg5 {[%clk 0:01:50.6]} 23. Nd5 {[%clk 0:01:37.9]}
23... Rg8 {[%clk 0:01:50]} 24. Kh1 {[%clk 0:01:37.7]} 24... Bh6 {[%clk
0:01:45.3]} 25. Qe1 {[%clk 0:01:18.3]} 25... Rg6 {[%clk 0:01:32.7]} 26. Bh5
{[%clk 0:01:07.7]} 26... Rg5 {[%clk 0:01:31.2]} 27. Bxf7 {[%clk 0:01:05.5]}
27... Qd7 {[%clk 0:01:25.3]} 28. Qh4 {[%clk 0:00:40.5]} 28... Nxf7 {[%clk
0:01:21.1]} 29. Rf6 {[%clk 0:00:32.9]} 29... Rbg8 {[%clk 0:01:07]} 30. Raf1
{[%clk 0:00:31.7]} 30... Rg4 {[%clk 0:00:55.5]} 31. Qh5 {[%clk 0:00:27.9]} 31...
R4g5 {[%clk 0:00:36.8]} 32. Qxf7 {[%clk 0:00:25.5]} 32... Qg4 {[%clk 0:00:36.2]}
33. Qxg8+ {[%clk 0:00:10.7]} 33... Rxg8 {[%clk 0:00:37.1]} 34. R6f2 {[%clk
0:00:03.2]} 34... Qxe4+ {[%clk 0:00:36.5]} 35. Rf3 {[%clk 0:00:03.6]} 35... Qxd5
{[%clk 0:00:37.2]} 0-1

[Event "Late-Titled-Tuesday-Blitz-February-06-2024"]
[Site "Chess.com"]
[Date "2024.02.06"]
[Round "3"]
[White "Binary010"]
[Black "masterofpuppets2"]
[Result "1/2-1/2"]
[WhiteElo "2831"]
[BlackElo "2517"]
[TimeControl "180+1"]
[EndTime "14:28:55 PST"]
[Termination "Game drawn by repetition"]

1. b3 {[%clk 0:03:00.9]} 1... d5 {[%clk 0:02:59.8]} 2. Bb2 {[%clk 0:03:01.1]}
2... b5 {[%clk 0:02:59.7]} 3. e3 {[%clk 0:02:56.8]} 3... a6 {[%clk 0:02:59.2]}
4. a4 {[%clk 0:02:50.3]} 4... bxa4 {[%clk 0:02:44.7]} 5. Rxa4 {[%clk 0:02:49.5]}
5... Bb7 {[%clk 0:02:42.2]} 6. Nf3 {[%clk 0:02:47.8]} 6... Nf6 {[%clk
0:02:41.4]} 7. Be2 {[%clk 0:02:37.8]} 7... e6 {[%clk 0:02:41.5]} 8. O-O {[%clk
0:02:38]} 8... Be7 {[%clk 0:02:39.7]} 9. d4 {[%clk 0:02:28.4]} 9... O-O {[%clk
0:02:37.6]} 10. Nbd2 {[%clk 0:02:28.6]} 10... Nbd7 {[%clk 0:02:37.5]} 11. Ne5
{[%clk 0:02:27.8]} 11... Nxe5 {[%clk 0:02:35]} 12. dxe5 {[%clk 0:02:28.2]} 12...
Nd7 {[%clk 0:02:35.3]} 13. Qa1 {[%clk 0:01:50.8]} 13... Qc8 {[%clk 0:02:22.1]}
14. Ra5 {[%clk 0:01:18]} 14... Bb4 {[%clk 0:02:19.4]} 15. Nf3 {[%clk 0:01:16.1]}
15... Bxa5 {[%clk 0:02:16.4]} 16. Qxa5 {[%clk 0:01:17]} 16... c5 {[%clk
0:02:10.2]} 17. Qa4 {[%clk 0:01:17.2]} 17... Qc6 {[%clk 0:02:09.2]} 18. Qh4
{[%clk 0:01:07.3]} 18... a5 {[%clk 0:01:32.6]} 19. Bd3 {[%clk 0:01:07.3]} 19...
h6 {[%clk 0:01:23.3]} 20. Ra1 {[%clk 0:01:07.1]} 20... Ba6 {[%clk 0:01:15]} 21.
Bxa6 {[%clk 0:01:01.4]} 21... Rxa6 {[%clk 0:01:14.5]} 22. Ra4 {[%clk 0:01:00.3]}
22... Nb6 {[%clk 0:01:08.3]} 23. Rg4 {[%clk 0:00:59.8]} 23... Kh8 {[%clk
0:00:50.3]} 24. e4 {[%clk 0:00:43.4]} 24... dxe4 {[%clk 0:00:45.1]} 25. Rxg7
{[%clk 0:00:16.2]} 25... Kxg7 {[%clk 0:00:42.2]} 26. Bc1 {[%clk 0:00:16.4]}
26... Rh8 {[%clk 0:00:17.9]} 27. Qf6+ {[%clk 0:00:16.4]} 27... Kg8 {[%clk
0:00:15.7]} 28. Qd8+ {[%clk 0:00:16.5]} 28... Kh7 {[%clk 0:00:14.3]} 29. Qf6
{[%clk 0:00:16.8]} 29... Kg8 {[%clk 0:00:11.7]} 30. Qd8+ {[%clk 0:00:16.8]}
30... Kg7 {[%clk 0:00:08.2]} 31. Qf6+ {[%clk 0:00:16.4]} 31... Kg8 {[%clk
0:00:08.7]} 1/2-1/2